Workbook

Sheet SB1383 Edible Definitions
A1: Summary of Business Information to Gather for Identifying SB1383 Edible Food Generators and Estimating Edible Food Recovery
A3: Definitions:
A4: “Tier one commercial edible food generator” means a commercial edible food generator that is one of the following:
B5: (A) Supermarket.
C6: “Supermarket” means a full-line, self-service retail store with gross annual sales of two million dollars ($2,000,000), or more, and which sells a line of dry grocery, canned goods, or nonfood items and some perishable items.
B7: (B) Grocery store with a total facility size equal to or greater than 10,000 square feet.
C8: “Grocery store” means a store primarily engaged in the retail sale of canned food; dry goods; fresh fruits and vegetables; fresh meats, fish, and poultry; and any area that is not separately owned within the store where the food is prepared and served, including a bakery, deli, and meat and seafood departments
B9: (C) Food service provider.
C10: Food service provider means an entity primarily engaged in providing food services to institutional, governmental, commercial, or industrial locations of others based on contractual arrangements with these types of organizations
B11: (D) Food distributor.
C12: “Food Distributor” means a company that distributes food to entities including, but not limited to, supermarkets and grocery stores
B13: (E) Wholesale food vendor.
C14: “Wholesale food vendor” means a business or establishment engaged in the merchant wholesale distribution of food, where food (including fruits and vegetables) is received, shipped, stored, prepared for distribution to a retailer, warehouse, distributor, or other destination.
A16: “Tier two commercial edible food generator” means a commercial edible food generator that is one of the following:
B17: (A) Restaurant with 250 or more seats, or a total facility size equal to or greater than 5,000 square feet.
C18: “Restaurant” means an establishment primarily engaged in the retail sale of food and drinks for on-premises or immediate consumption.
B19: (B) Hotel with an on-site food facility and 200 or more rooms.
C20: “Hotel” has the same meaning as in "Hotel” has the same meaning as in Section 17210 of the Business and Professions code..
B21: (C) Health facility with an on-site food facility and 100 or more beds.
C22: “Health facility” has the same meaning as in Section 1250 of the Health and Safety Code.
B23: (D) Large venue.
C24: “Large venue” means a permanent venue facility that annually seats or serves an average of more than 2,000 individuals within the grounds of the facility per day of operation of the venue facility.
C25: For the purposes of this chapter, a venue facility includes, but is not limited to, a public, nonprofit, or privately owned or operated stadium, amphitheater, arena, hall, amusement park, conference or civic center, zoo, aquarium, airport, racetrack, horse track, performing arts center, fairground, museum, theater, or other public attraction facility. For the purposes of this chapter, a site under common ownership or control that includes more than one large venue that is 1 contiguous with other large venues in the site, is a single large venue.
B26: (E) Large event.
C27: “Large event” means an event, including, but not limited to, a sporting event or a flea market, that charges an admission price, or is operated by a local agency, and serves an average of more than 2,000 individuals per day of operation of the event, at a location that includes, but is not limited to, a public, nonprofit, or privately owned park, parking lot, golf course, street system, or other open space when being used for an event.
B28: (F) A state agency with a cafeteria with 250 or more seats or a total cafeteria facility size equal. to or greater than 5,000 square feet.
B30: (G) A local education agency with an on-site food facility.
C31: “Local education agency” means a school district, charter school, or county office of education that is not subject to the control of city or county regulations related to solid waste.
A33: Other definitions provided:
B34: “Food facility” has the same meaning as in Section 113789 of the Health and Safety Code.
B35: “Non-local entity” means an entity that is an organic waste generator but is not subject to the control of a jurisdiction’s regulations related to solid waste. These entities may include, but are not limited to, special districts, federal facilities, prisons, facilities operated by the state parks system, public universities, including community colleges, county fairgrounds, and state agencies.

Sheet Business Data Needed
A1: Information to Gather for Identifying SB1383 Edible Food Generators and Estimating Edible Food Recovery for the Planning Period January 1, 2022 - December 31, 2024
A3: *NEW* Population Data
A4: The jurisdiction will need the current population as of January 1, 2022 to estimate current disposal by Commerical Edible Food Generators.
A5: The jurisdiction will also need the future projected population at the end of the planning period, December 31, 2024, for purposes of estimating the projected future disposal.
A7: Types of Business Data to Gather:
A8: General Information to include with all facilities returned in search results, as available. Ideally this information will be in excel format with columns for each of the following. That way the data can easily be sorted. | C8: Other sector-specific information identified via other research/ audits
A9: Facility/ business name, | C9: Hotels and Lodging: general information plus
A10: address, | C10: # of rooms
A11: contact info, | C11: Onsite food facility?
A12: primary NAICS or SIC code, | C12: Licensed Health Care Facilities: general information plus
A13: additional NAICS or SIC codes… | C13: # of beds
A14: facility square footage, | C14: Onsite food facility?
A15: Annual gross sales, | C15: Entertainment/ Venues: general information plus
A16: # of employees | C16: # annual visitors
A17: # of seats or seating capacity or visitor capacity | C17: Special Events: general information plus
C18: # visitors per day
A19: If a business has multiple locations, then return above for each location in the jurisdiction.
A21: Details on Potential Commercial Edible Food Generators and Demographic Data Needed to Estimate Potential Food Recovery
A22: Facility Type | B22: SB 1383 Notes | C22: Identify Commercial Edible Food Generators | K22: Other demographics to use this tool
C23: Seats | D23: Visitors | E23: Facility Size | G23: Gross Sales | H23: Rooms | I23: Beds | J23: Onsite Food Facility
A24: Tier 1 Commercial Edible Food Generators
A25: Supermarkets | B25: Gross sales. CalRecycle already identifies Supermarkets in CRV Program. | G25: 2000000 | K25: # employees
A26: Grocery Stores | B26: Facility size | E26: 10000 | F26: sf | K26: # employees
A27: Food Service Providers | K27: # employees
A28: Food Wholesale Vendors and Distributors | K28: # employees
A29: Tier 2 Commercial Edible Food Generators
A30: Restaurants | B30: Seats or facility size | C30: 250 | E30: 5000 | F30: sf | K30: # employees
A31: Health Facilities | B31: # beds, onsite food facility | I31: 100 | J31: X | K31: # employees | L31: # permitted beds (online lookup)
A32: Large Venues | B32: # seats and/or annual average of daily visitors | C32: 2000* | D32: 2000* | K32: # employees | L32: # seats or # annual visitors
A33: Large Events | B33: attendees/ day. Sum up annual total | D33: 2000 | L33: # annual visitors- permit information
A34: Hotel | B34: # rooms, onsite food facility | H34: 200 | J34: X | K34: # employees
A35: State agencies | B35: Onsite cafeteria seats or cafeteria facility size | C35: 250 | E35: 5000 | F35: sf | J35: X | K35: # FTE employees (College + University), # total employees (other), or # food service employees | L35: # students (College + University, online lookup)
A36: Local Education Agencies | B36: Onsite food facilities. Public schools and central kitchens | J36: X | K36: # FTE employees | L36: # students (online lookup)
A37: Other (might fit into one of the above)
A38: Food Production | B38: Include those that are wholesale food vendors and/ or distributors. Growers and producers are not necessarily Commercial Edible Food Generators . Very dependent on individual businesses.
A39: Corporate Sites w/ Food Service | B39: Could fall under Restaurant definition or Food Service Provider | J39: X | K39: # employees at the facility or number of food service staff
A40: Other government agencies w/ onsite food facilities | B40: Could fall under Restaurant definition or Food Service Provider | J40: X | K40: # employees at the facility or number of food service staff
A41: Prisons/ correctional facilities | B41: # inmates. Also note central production facilities | J41: X | L41: # inmates (online lookup)
A43: Other areas to consider: | B43: Retail variety stores, discount and dollar stores, and other stores carrying groceries. These may be included as "Grocery Stores" for purposes of SB 1383 enrollment as Tier 1 Generators.
B44: Use discretion in including them. Do they dispose of edible food in significant quantity?
B45: May consider including them for now and later confirming via audits, etc.
B47: Businesses may not outright meet its primary Tier 1 or Tier 2 definition, but an activity at the business or site could.
B48: For example, a hotel may have less than 200 rooms, but it could have other amenities or services onsite could meet other Tier 1 or 2 generator definitions (Large Venue, Restaurant)
B49: In the above example of hotel with less than 200 rooms, the specific venue or restaurant would be the generator required to comply with the edible food recovery requirements. The whole hotel itself, is not the generator.
B51: Caterers are not Commercial Edible Food Generators

Sheet Methodology
A1: Edible Food Rescue Potential Methodology
A2: This page explains the methodology followed by County of San Diego staff and contractors to identify generators and estimate edible food rescue potential
A4: 1 | B4: Determine how jurisdiction will use this tool. For example, County of San Diego initially ran this tool to estimate edible food rescue potential from SB 1383 Tier 1 and Tier 2 generators. The tool can also be used to estimate jurisdiction-wide edible food rescue potential from ALL generators, or certain sectors.
A5: 2 | B5: The methodology that follows explains estimating edible food rescue from SB 1383 Tier 1 and Tier 2 Generators.
A6: 3 | B6: Identify generators and aggregate their business data by sector
B7: a | C7: Review hauler account records, business license records, economic development data, food facility licensees from the health department, etc. to identify what records are readily available for food generating businesses
B8: i. | C8: Refer to "Business Data Needed" tab to identify information needed for each business sector of interest such as facility size, sales revenue, etc.
B9: ii. | C9: Review the "Food Waste Calcs" and "Rescue Potential Calcs" tab herein and note which specific data is also needed by sector to populate the tool.
B10: b | C10: Commercial Business Lists:
B11: i. | C11: Access business database records for free via public library (may need library card). Will need to enter search criteria such as NAICS codes. For example, Data Axle.
B12: ii. | C12: Commercial business lists may also be purchased. County of San Diego purchased a list from a local firm, Spectrum Data Services. | L12: https://sds.com/
B13: iii. | C13: Hoovers Database (Dun & Bradstreet), available for purchase | J13: https://www.dnbsame.com/hoovers.php
B14: iv. | C14: The search criteria needs to be pre-defined and provided to the listing firm. They can help define the search criteria
B15: c | C15: The generators will likely be identified through a combination of the sources identified above. It takes general knowledge of the businesses in the jurisdiction along with combing through available data, to develop a compilation of potential businesses
B16: i. | C16: Create a master list of businesses organized by their business sector
B17: ii. | C17: Aggregate the required data by business sector, i.e., total number of employees, total number of students, etc.
B18: d | C18: Some helpful websites to gather additional information for certain sectors (note, you will need to have a list of these facilities on hand through your prior facility search):
C19: Public Schools, number of students and FTE employees: | J19: https://nces.ed.gov/ | K19: https://dq.cde.ca.gov/dataquest/
C20: Universities and Colleges, # of students and FTE employees: obtain directly from their website | K20: https://www.universityofcalifornia.edu/infocenter/employee-fte
C21: Community Colleges, number of students and FTE employees: | J21: https://datamart.cccco.edu/Faculty-Staff/Default.aspx
C22: Prisons and Correctional Facilities, number of inmates: obtain directly from facility, and: | K22: http://www.prisonpro.com/correctional-facilities-by-state
C23: Healthcare, number of licensed beds: | J23: https://www.cdph.ca.gov/Programs/CHCQ/LCP/CalHealthFind/Pages/SearchResult.aspx | M23: https://www.ahd.com
A24: 4 | B24: a | C24: Enter the aggregated business data into the calculations tabs to populate the tool.
B25: i. | C25: Note the tool is organized by sector types and do not exactly follow Commercial Edible Food Definitions. For example, "State Agency." The user will identify the state agency for purposes of ID'ing it as a Tier 2 generator. For purposes of estimating food disposal/ recovery, the user will assign the best matching sector, such as "restaurant" or "food service provider" or "prison," etc.
A27: 5 | B27: Population Data
B28: a | C28: California DOF records may be used to determine population forecasts at the County level.
B29: b | C29: Or, the jurisdiction's planning department can provide existing and projected population for the planning period.
B30: c | C30: Ensure the population projection covers the three-year planning period. This tool will apply the % change in population over the planning period to estimate the future projected disposal.
A31: Notes:
B32: This tool is adapted from NRDC's calculator: "City Wasted Food and Rescue Potential Calculator"
B34: The calculation is developed using food waste disposal and generation metrics identified in CalRecycle's 2014 Generator Study, with some select sector data from thier 2018 Waste Characterization Study. Some detailed sector data was extrapolated from CalRecycle's 2012 Commercial Climate Calculator (noted as Cascadia model herein)
B35: The rescue scenarios are largely sources from narrative descriptions of food recovery potential in NRDC's report: "Modeling the Potential to Increase Food Rescue: Denver, New York and Nashville."
B37: The tool may not reflect existing diversion/ recovery practices at individual facilities.
B38: The tool is static and won't estimate changes over time.

Sheet SUMMARY RESULTS
B43: Moderate Recoverable Potential | G43: Maximum Recoverable Potential | T43: Maximum Recoverable Potential
C45: Total tons of rescue potential | D45: =L113 -> 0 | H45: Total tons of rescue potential | O45: =O113 -> 165 | U45: Total tons of rescue potential | Y45: =U113 -> 165
C46: Total meals potentially rescued | D46: =L113*2000/1.2 -> 0 | H46: Total meals potentially rescued | O46: =O113*2000/1.2 -> 275000 | U46: Total meals potentially rescued | Y46: =U113*2000/1.2 -> 275000
C47: Potential meal gap filled | D47: =D46/(A70/A68) -> 0 | H47: Potential meals gap filled | O47: =O46/($A$70/$A$68) -> 0.08384976022 | U47: Potential meals gap filled | Y47: =Y46/($A$70/$A$68) -> 0.08384976022
C52: Overall Food Disposal and Potential Edible Food Recovery | I52: DRAFT MODEL. METHODOLOGY AND RESULTS SUBJECT TO CHANGE. REVISED APRIL 2022.
H53: BEGINNING REPORTING YEAR RESULTS: YEAR 2022 | X53: TARGET REPORTING YEAR RESULTS: YEAR 2024
A54: Enter Jurisdiction Name Here | C54: Sector Summaries | H54: Disposal Based Results | Q54: Generation Based Results | X54: Disposal Based Results | AG54: Generation Based Results
I55: Estimated tons of food waste disposed per sector per year | L55: Moderate tons of additional rescue potential per sector per year | O55: Maximum tons of rescue potential per sector per year | R55: Upper limit of estimated tons of food waste that may be disposed per sector per year | U55: Upper limit tons of rescue potential per sector per year | Y55: Estimated tons of food waste disposed per sector per year | AB55: Moderate tons of additional rescue potential per sector per year | AE55: Maximum tons of rescue potential per sector per year | AH55: Upper limit of estimated tons of food waste that may be disposed per sector per year | AK55: Upper limit tons of rescue potential per sector per year | AN55: Additional Notes
A56: Residents
A57: Total Residential Population | C57: Tier 1 Commercial Edible Food Generators (Note 1)
C58: Grocery Stores and Supermarkets
A59: Meals gap | C59: Includes "typical" supermarkets and groceries for purposes of estimating disposal/ potential recovery | D59: ='Food Waste Calcs'!B6 -> 0 | F59: Employees | I59: ='Food Waste Calcs'!F6 -> 0 | L59: ='Rescue Potential Calcs'!F7 -> 0 | O59: ='Rescue Potential Calcs'!I7 -> 0 | R59: ='Food Waste Calcs'!I6 -> 0 | U59: ='Rescue Potential Calcs'!M7 -> 0 | Y59: =I59*'Food Waste Calcs'!$F$55+I59 ->  | AB59: =L59*'Food Waste Calcs'!$F$55+L59 ->  | AE59: =O59*'Food Waste Calcs'!$F$55+O59 ->  | AH59: =R59*'Food Waste Calcs'!$F$55+R59 ->  | AK59: =U59*'Food Waste Calcs'!$F$55+U59 -> 
A60: Information about food insecurity at the county level can be found at:
A61: http://map.feedingamerica.org/
A62: City-specific estimates may be available from | C62: Warehouse Clubs and Supercenters (1383 Supermarkets or Grocery)
A63: local agencies or social service providers. | C63: Warehouse Clubs and Big Box Stores | D63: ='Food Waste Calcs'!B8 -> 0 | F63: Employees | I63: ='Food Waste Calcs'!F8 -> 0 | L63: ='Rescue Potential Calcs'!F8 -> 0 | O63: ='Rescue Potential Calcs'!I8 -> 0 | R63: ='Food Waste Calcs'!I8 -> 0 | U63: ='Rescue Potential Calcs'!M8 -> 0 | Y63: =I63*'Food Waste Calcs'!$F$55+I63 ->  | AB63: =L63*'Food Waste Calcs'!$F$55+L63 ->  | AE63: =O63*'Food Waste Calcs'!$F$55+O63 ->  | AH63: =R63*'Food Waste Calcs'!$F$55+R63 ->  | AK63: =U63*'Food Waste Calcs'!$F$55+U63 -> 
A64: Please locate the data for your area and enter the corresponding information below
A65: Number of Food Insecure People in City
C66: Food Service Providers
A67: Average Meal Cost | C67: Contract Food Service, Corporate Kitchens and Banquet Halls | D67: ='Food Waste Calcs'!B10 -> 0 | F67: Employees (Food Service Staff) | I67: =SUM('Food Waste Calcs'!F10:F11) -> 0 | L67: ='Rescue Potential Calcs'!F9 -> 0 | O67: ='Rescue Potential Calcs'!I9 -> 0 | R67: =SUM('Food Waste Calcs'!I10:I11) -> 0 | U67: ='Rescue Potential Calcs'!M9 -> 0 | Y67: =I67*'Food Waste Calcs'!$F$55+I67 ->  | AB67: =L67*'Food Waste Calcs'!$F$55+L67 ->  | AE67: =O67*'Food Waste Calcs'!$F$55+O67 ->  | AH67: =R67*'Food Waste Calcs'!$F$55+R67 ->  | AK67: =U67*'Food Waste Calcs'!$F$55+U67 -> 
A68: 3.23 | C68: or | D68: ='Food Waste Calcs'!B11 -> 0 | F68: Employees (Of the business served)
A69: Annual Food Budget Shortfall
A70: =188159000*0.0563 -> 10593351.7 | C70: Food Distributors
A71: County Population | C71: Includes food packing, wholesale distributors and suppliers | D71: ='Food Waste Calcs'!B13 -> 0 | F71: Employees | I71: ='Food Waste Calcs'!F13 -> 0 | L71: ='Rescue Potential Calcs'!F11 -> 0 | O71: ='Rescue Potential Calcs'!I11 -> 0 | R71: ='Food Waste Calcs'!I13 -> 0 | U71: ='Rescue Potential Calcs'!M11 -> 0 | Y71: =I71*'Food Waste Calcs'!$F$55+I71 ->  | AB71: =L71*'Food Waste Calcs'!$F$55+L71 ->  | AE71: =O71*'Food Waste Calcs'!$F$55+O71 ->  | AH71: =R71*'Food Waste Calcs'!$F$55+R71 ->  | AK71: =U71*'Food Waste Calcs'!$F$55+U71 -> 
A72: 3344430
C73: Wholesale Food Vendors
C74: Includes food manufacturing and processing | D74: ='Food Waste Calcs'!B15 -> 0 | F74: Employees | I74: ='Food Waste Calcs'!F15 -> 0 | L74: ='Rescue Potential Calcs'!F10 -> 0 | O74: ='Rescue Potential Calcs'!I10 -> 0 | R74: ='Food Waste Calcs'!I15 -> 0 | U74: ='Rescue Potential Calcs'!M10 -> 0 | Y74: =I74*'Food Waste Calcs'!$F$55+I74 ->  | AB74: =L74*'Food Waste Calcs'!$F$55+L74 ->  | AE74: =O74*'Food Waste Calcs'!$F$55+O74 ->  | AH74: =R74*'Food Waste Calcs'!$F$55+R74 ->  | AK74: =U74*'Food Waste Calcs'!$F$55+U74 -> 
C76: Tier 2 Commercial Edible Food Generators (Note 1)
C77: Colleges and Universities
C78: May include public and private institutions. | D78: ='Food Waste Calcs'!B19 -> 0 | F78: employees
C79: or | D79: ='Food Waste Calcs'!B21 -> 0 | F79: students | I79: =SUM('Food Waste Calcs'!F19:F21) -> 0 | L79: ='Rescue Potential Calcs'!F13 -> 0 | O79: ='Rescue Potential Calcs'!I13 -> 0 | R79: =SUM('Food Waste Calcs'!I19:I21) -> 0 | U79: ='Rescue Potential Calcs'!M13 -> 0 | Y79: =I79*'Food Waste Calcs'!$F$55+I79 ->  | AB79: =L79*'Food Waste Calcs'!$F$55+L79 ->  | AE79: =O79*'Food Waste Calcs'!$F$55+O79 ->  | AH79: =R79*'Food Waste Calcs'!$F$55+R79 ->  | AK79: =U79*'Food Waste Calcs'!$F$55+U79 -> 
C81: K-12 Schools (Local Education Agencies)
C82: (may include private schools that meet other definitions) | D82: ='Food Waste Calcs'!B24 -> 0 | F82: Employees
C83: or | D83: ='Rescue Potential Calcs'!C14 -> 0 | F83: students | I83: =SUM('Food Waste Calcs'!F24:F25) -> 0 | L83: ='Rescue Potential Calcs'!F14 -> 0 | O83: ='Rescue Potential Calcs'!I14 -> 0 | R83: =SUM('Food Waste Calcs'!I24:I25) -> 0 | U83: ='Rescue Potential Calcs'!M14 -> 0 | Y83: =I83*'Food Waste Calcs'!$F$55+I83 ->  | AB83: =L83*'Food Waste Calcs'!$F$55+L83 ->  | AE83: =O83*'Food Waste Calcs'!$F$55+O83 ->  | AH83: =R83*'Food Waste Calcs'!$F$55+R83 ->  | AK83: =U83*'Food Waste Calcs'!$F$55+U83 -> 
C85: Hotels
C86: Hotels including lodging and tourism businesses | D86: ='Food Waste Calcs'!B27 -> 0 | F86: Employees | I86: =SUM('Food Waste Calcs'!F27:F28) -> 0 | L86: ='Rescue Potential Calcs'!F15 -> 0 | O86: ='Rescue Potential Calcs'!I15 -> 0 | R86: =SUM('Food Waste Calcs'!I27:I28) -> 0 | U86: ='Rescue Potential Calcs'!M15 -> 0 | Y86: =I86*'Food Waste Calcs'!$F$55+I86 ->  | AB86: =L86*'Food Waste Calcs'!$F$55+L86 ->  | AE86: =O86*'Food Waste Calcs'!$F$55+O86 ->  | AH86: =R86*'Food Waste Calcs'!$F$55+R86 ->  | AK86: =U86*'Food Waste Calcs'!$F$55+U86 -> 
C87: or | D87: ='Food Waste Calcs'!B28 -> 0 | F87: Rooms
C89: Health Care
C90: Includes hospitals and skilled nursing facilities. Includes beds of residential living (i.e., assisted living) if shared onsite with licensed health facility | D90: ='Food Waste Calcs'!B30 -> 0 | F90: Employees | I90: =SUM('Food Waste Calcs'!F30:F31) -> 0 | L90: ='Rescue Potential Calcs'!F16 -> 0 | O90: ='Rescue Potential Calcs'!I16 -> 0 | R90: =SUM('Food Waste Calcs'!I30:I31) -> 0 | U90: ='Rescue Potential Calcs'!M16 -> 0 | Y90: =I90*'Food Waste Calcs'!$F$55+I90 ->  | AB90: =L90*'Food Waste Calcs'!$F$55+L90 ->  | AE90: =O90*'Food Waste Calcs'!$F$55+O90 ->  | AH90: =R90*'Food Waste Calcs'!$F$55+R90 ->  | AK90: =U90*'Food Waste Calcs'!$F$55+U90 -> 
C91: or | D91: ='Food Waste Calcs'!B31 -> 0 | F91: Beds
C93: Other Retail w/ Grocery
C94: Other Retail Stores w/ Grocery, Discount Stores, etc. | D94: ='Food Waste Calcs'!B33 -> 0 | F94: employees | I94: ='Food Waste Calcs'!F33 -> 0 | L94: ='Rescue Potential Calcs'!F17 -> 0 | O94: ='Rescue Potential Calcs'!I17 -> 0 | R94: ='Food Waste Calcs'!I33 -> 0 | U94: ='Rescue Potential Calcs'!M17 -> 0 | Y94: =I94*'Food Waste Calcs'!$F$55+I94 ->  | AB94: =L94*'Food Waste Calcs'!$F$55+L94 ->  | AE94: =O94*'Food Waste Calcs'!$F$55+O94 ->  | AH94: =R94*'Food Waste Calcs'!$F$55+R94 ->  | AK94: =U94*'Food Waste Calcs'!$F$55+U94 ->  | AN94: User to apply discretion in assigning
C96: Restaurants
D97: ='Food Waste Calcs'!B39 -> 0 | F97: Employees
C98: Full Service | D98: ='Food Waste Calcs'!B37 -> 0 | F98: Employees | I98: ='Food Waste Calcs'!F37 -> 0 | L98: ='Rescue Potential Calcs'!F18 -> 0 | O98: ='Rescue Potential Calcs'!I18 -> 0 | R98: ='Food Waste Calcs'!I37 -> 0 | U98: ='Rescue Potential Calcs'!M18 -> 0 | Y98: =I98*'Food Waste Calcs'!$F$55+I98 ->  | AB98: =L98*'Food Waste Calcs'!$F$55+L98 ->  | AE98: =O98*'Food Waste Calcs'!$F$55+O98 ->  | AH98: =R98*'Food Waste Calcs'!$F$55+R98 ->  | AK98: =U98*'Food Waste Calcs'!$F$55+U98 -> 
C99: Limited Service | D99: ='Food Waste Calcs'!B38 -> 0 | F99: Employees | I99: ='Food Waste Calcs'!F38 -> 0 | L99: ='Rescue Potential Calcs'!F19 -> 0 | O99: ='Rescue Potential Calcs'!I19 -> 0 | R99: ='Food Waste Calcs'!I38 -> 0 | U99: ='Rescue Potential Calcs'!M19 -> 0 | Y99: =I99*'Food Waste Calcs'!$F$55+I99 ->  | AB99: =L99*'Food Waste Calcs'!$F$55+L99 ->  | AE99: =O99*'Food Waste Calcs'!$F$55+O99 ->  | AH99: =R99*'Food Waste Calcs'!$F$55+R99 ->  | AK99: =U99*'Food Waste Calcs'!$F$55+U99 -> 
C101: Event and Recreation Facilities
C102: Includes sports and event spaces | D102: ='Food Waste Calcs'!B41 -> 0 | F102: Employees | I102: ='Food Waste Calcs'!F41+'Food Waste Calcs'!F42 -> 0 | L102: ='Rescue Potential Calcs'!F20 -> 0 | O102: ='Rescue Potential Calcs'!I20 -> 0 | R102: ='Food Waste Calcs'!I41+'Food Waste Calcs'!I42 -> 0 | U102: ='Rescue Potential Calcs'!M20 -> 0 | Y102: =I102*'Food Waste Calcs'!$F$55+I102 ->  | AB102: =L102*'Food Waste Calcs'!$F$55+L102 ->  | AE102: =O102*'Food Waste Calcs'!$F$55+O102 ->  | AH102: =R102*'Food Waste Calcs'!$F$55+R102 ->  | AK102: =U102*'Food Waste Calcs'!$F$55+U102 -> 
D103: ='Food Waste Calcs'!B42 -> 0 | F103: Annual visitors
C105: Correctional Facilities (Tier 1 or Tier 2, User to Confirm)
C106: Includes prisons and jails | D106: ='Food Waste Calcs'!B44 -> 0 | F106: Inmates | I106: ='Food Waste Calcs'!F44 -> 0 | L106: ='Rescue Potential Calcs'!F21 -> 0 | O106: ='Rescue Potential Calcs'!I21 -> 0 | R106: ='Food Waste Calcs'!I44 -> 0 | U106: ='Rescue Potential Calcs'!M21 -> 0 | Y106: =I106*'Food Waste Calcs'!$F$55+I106 ->  | AB106: =L106*'Food Waste Calcs'!$F$55+L106 ->  | AE106: =O106*'Food Waste Calcs'!$F$55+O106 ->  | AH106: =R106*'Food Waste Calcs'!$F$55+R106 ->  | AK106: =U106*'Food Waste Calcs'!$F$55+U106 -> 
C108: Other Commercial Edible Food Generators
C109: Other- (Tier 1 or Tier 2, as determined by user) | L109: manually enter food recovery estimate | O109: manually enter food recovery estimate | U109: manually enter food recovery estimate
C110: Other- Enter Note of Other Facilities. See Food Waste Calcs for Details | D110: ='Food Waste Calcs'!B51 -> 0 | F110: Tons of food wasted | I110: ='Food Waste Calcs'!F51 -> 0 | O110: 165 | R110: ='Food Waste Calcs'!I51 -> 0 | U110: =O110 -> 165 | Y110: =I110*'Food Waste Calcs'!$F$55+I110 ->  | AB110: =L110*'Food Waste Calcs'!$F$55+L110 ->  | AE110: =O110*'Food Waste Calcs'!$F$55+O110 ->  | AH110: =R110*'Food Waste Calcs'!$F$55+R110 ->  | AK110: =U110*'Food Waste Calcs'!$F$55+U110 ->  | AN110: User may manually enter current and future potential recovery estimates, if estimated
F113: Total Estimated Tons | I113: =SUM(I57:I111) -> 0 | L113: =SUM(L57:L111) -> 0 | O113: =SUM(O57:O111) -> 165 | R113: =SUM(R57:R111) -> 0 | U113: =SUM(U57:U111) -> 165 | Y113: =SUM(Y57:Y111) ->  | AB113: =SUM(AB57:AB111) ->  | AE113: =SUM(AE57:AE111) ->  | AH113: =SUM(AH57:AH111) ->  | AK113: =SUM(AK57:AK111) -> 
C115: *adapted from NRDC's "City Wasted Food and Rescue Potential Calculator"
C117: (1) Generators are generally organized by Tier 1 and Tier 2 sector designations, though some generators do not neatly fit into a Tier 1 and Tier 2 sector. User may need to extract or reorganize results to gain an accurate picture of Tier 1 and Tier 2. For example, "Retail Variety Store" is not a Tier 1 or Tier 2 generator in itself, nor are "Colleges and Universities." The specific food sectors of Non-Local Entities would need to be used as well.
C119: (2) Column AE, Target Reporting Year Results: Year 2024, Maximum Pounds of Rescue Potential…, is the edible food disposal result for purposes of capacity planning.
C121: (3) Users may elect to incorporate results from this Calculator tool into CalRecycle's Edible Food Calculator Tool for purposes of quantifying the edible food recovery capacity surplus or deficit.
C122: If incorporating results into CalRecycle's tool, user will need to use the Beginning Reporting Year Results: Year 2022. Maximum Tons of Rescue Potential... from Column O, as well as re-enter the population data. The target reporting year projection disposal will automatically calculate in CalRecycle's tool.
C124: (4) "Moderate Pounds of Rescue Potential…" in Columns L and AB represent lower participation by generators and less than maximum amounts of edible food being recovered. Thes figures might help jurisdictions plan how to ramp up their program over time until they achieve thier planned capacity
C126: (5) Generation-Based results are hidden in columns Q-V, and AG-AL.
C127: The estimates for edible food recovery were derived from landfill disposal data, not food waste generation. The actual recovery potential at the generation level may vary significantly.
C164: will hide
C165: Sectors | F165: Sectors | I165: Tons of food waste disposed | L165: AG | O165: MP additional rescue potential | R165: Tons of food waste generated | U165: MP additional rescue potential
C166: =C58 -> Grocery Stores and Supermarkets | F166: =C166 -> Grocery Stores and Supermarkets | I166: =Y59+Y63 ->  | L166: =AB59+AB63 ->  | O166: =AE59+AE63 ->  | R166: =R59+R63 -> 0 | U166: =U59+U63 -> 0
C167: =C93 -> Other Retail w/ Grocery | F167: =C167 -> Other Retail w/ Grocery | I167: =Y94 ->  | L167: =AB94 ->  | O167: =AE94 ->  | R167: =R94 -> 0 | U167: =U94 -> 0
C168: =C66 -> Food Service Providers | F168: Food Service Providers | I168: =Y67 ->  | L168: =AB67 ->  | O168: =AE67 ->  | R168: =R67 -> 0 | U168: =U67 -> 0
C169: =C70 -> Food Distributors | F169: Food Distributors | I169: =Y71 ->  | L169: =AB71 ->  | O169: =AE71 ->  | R169: =R71 -> 0 | U169: =U71 -> 0
C170: =C73 -> Wholesale Food Vendors | F170: Wholesale Food Vendors | I170: =Y74 ->  | L170: =AB74 ->  | O170: =AE74 ->  | R170: =R74 -> 0 | U170: =U74 -> 0
C171: =C77 -> Colleges and Universities | F171: Colleges and Universities | I171: =Y79 ->  | L171: =AB79 ->  | O171: =AE79 ->  | R171: =R79 -> 0 | U171: =U79 -> 0
C172: =C81 -> K-12 Schools (Local Education Agencies) | F172: K-12 Schools (Local Education Agencies) | I172: =Y83 ->  | L172: =AB83 ->  | O172: =AE83 ->  | R172: =R83 -> 0 | U172: =U83 -> 0
C173: =C85 -> Hotels | F173: Hotels | I173: =Y86 ->  | L173: =AB86 ->  | O173: =AE86 ->  | R173: =R86 -> 0 | U173: =U86 -> 0
C174: =C89 -> Health Care | F174: Health Care | I174: =Y90 ->  | L174: =AB90 ->  | O174: =AE90 ->  | R174: =R90 -> 0 | U174: =U90 -> 0
C175: =C96 -> Restaurants | F175: Restaurants | I175: =Y98+Y99 ->  | L175: =AB98+AB99 ->  | O175: =AE98+AE99 ->  | R175: =R98+R99 -> 0 | U175: =U98+U99 -> 0
C176: =C101 -> Event and Recreation Facilities | F176: Event and Recreation Facilities | I176: =Y102 ->  | L176: =AB102 ->  | O176: =AE102 ->  | R176: =R102 -> 0 | U176: =U102 -> 0
C177: =C105 -> Correctional Facilities (Tier 1 or Tier 2, User to Confirm) | F177: Correctional Facilities (Tier 1 or Tier 2, User to Confirm) | I177: =Y106 ->  | L177: =AB106 ->  | O177: =AE106 ->  | R177: =R106 -> 0 | U177: =U106 -> 0
C178: Other | F178: Other | I178: =Y110 ->  | L178: =AB110 ->  | O178: =AE110 ->  | R178: =R110 -> 0 | U178: =U110 -> 165
I180: =SUM(I166:I178) ->  | L180: =SUM(L166:L178) ->  | O180: =SUM(O166:O178) ->  | R180: =SUM(R166:R178) -> 0 | U180: =SUM(U166:U178) -> 165

Sheet SELECT SECTOR EDIBLE BREAKDOWN
A1: NEW APRIL 2022 UPDATE
C2: BEGINNING REPORTING YEAR RESULTS: YEAR 2022 | I2: TARGET REPORTING YEAR RESULTS: YEAR 2024
A4: Percent of All Potentially Donatable Food Waste Disposed to Landfill by Food Type | C4: Disposal Based Results | F4: Generation Based Results | I4: Disposal Based Results | L4: Generation Based Results
C5: Estimated pounds of food waste disposed per sector per year | D5: Moderate pounds of additional rescue potential per sector per year | E5: Maximum pounds of rescue potential per sector per year | F5: Upper limit of estimated pounds of food waste that may be disposed per sector per year | G5: Upper limit pounds of rescue potential per sector per year | I5: Estimated pounds of food waste disposed per sector per year | J5: Moderate pounds of additional rescue potential per sector per year | K5: Maximum pounds of rescue potential per sector per year | L5: Upper limit of estimated pounds of food waste that may be disposed per sector per year | M5: Upper limit pounds of rescue potential per sector per year
A6: Supermarkets and Grocery Stores*
A7: Vegetative | B7: 0.61 | C7: =$B7*('SUMMARY RESULTS'!$I$59+'SUMMARY RESULTS'!$I$63)*2000 -> 0 | D7: =$B7*('SUMMARY RESULTS'!$L$59+'SUMMARY RESULTS'!$L$63)*2000 -> 0 | E7: =$B7*('SUMMARY RESULTS'!$O$59+'SUMMARY RESULTS'!$O$63)*2000 -> 0 | F7: =$B7*('SUMMARY RESULTS'!$R$59+'SUMMARY RESULTS'!$R$63)*2000 -> 0 | G7: =$B7*('SUMMARY RESULTS'!$U$59+'SUMMARY RESULTS'!$U$63)*2000 -> 0 | I7: =C7*'Food Waste Calcs'!$F$55+C7 ->  | J7: =D7*'Food Waste Calcs'!$F$55+D7 ->  | K7: =E7*'Food Waste Calcs'!$F$55+E7 ->  | L7: =F7*'Food Waste Calcs'!$F$55+F7 ->  | M7: =G7*'Food Waste Calcs'!$F$55+G7 -> 
A8: Meat | B8: 0.08 | C8: =$B8*('SUMMARY RESULTS'!$I$59+'SUMMARY RESULTS'!$I$63)*2000 -> 0 | D8: =$B8*('SUMMARY RESULTS'!$L$59+'SUMMARY RESULTS'!$L$63)*2000 -> 0 | E8: =$B8*('SUMMARY RESULTS'!$O$59+'SUMMARY RESULTS'!$O$63)*2000 -> 0 | F8: =$B8*('SUMMARY RESULTS'!$R$59+'SUMMARY RESULTS'!$R$63)*2000 -> 0 | G8: =$B8*('SUMMARY RESULTS'!$U$59+'SUMMARY RESULTS'!$U$63)*2000 -> 0 | I8: =C8*'Food Waste Calcs'!$F$55+C8 ->  | J8: =D8*'Food Waste Calcs'!$F$55+D8 ->  | K8: =E8*'Food Waste Calcs'!$F$55+E8 ->  | L8: =F8*'Food Waste Calcs'!$F$55+F8 ->  | M8: =G8*'Food Waste Calcs'!$F$55+G8 -> 
A9: Eggs, Dairy, and Dairy Alternatives | B9: 0.07 | C9: =$B9*('SUMMARY RESULTS'!$I$59+'SUMMARY RESULTS'!$I$63)*2000 -> 0 | D9: =$B9*('SUMMARY RESULTS'!$L$59+'SUMMARY RESULTS'!$L$63)*2000 -> 0 | E9: =$B9*('SUMMARY RESULTS'!$O$59+'SUMMARY RESULTS'!$O$63)*2000 -> 0 | F9: =$B9*('SUMMARY RESULTS'!$R$59+'SUMMARY RESULTS'!$R$63)*2000 -> 0 | G9: =$B9*('SUMMARY RESULTS'!$U$59+'SUMMARY RESULTS'!$U$63)*2000 -> 0 | I9: =C9*'Food Waste Calcs'!$F$55+C9 ->  | J9: =D9*'Food Waste Calcs'!$F$55+D9 ->  | K9: =E9*'Food Waste Calcs'!$F$55+E9 ->  | L9: =F9*'Food Waste Calcs'!$F$55+F9 ->  | M9: =G9*'Food Waste Calcs'!$F$55+G9 -> 
A10: Cooked/Baked/Prepared Perishable Items | B10: 0.18 | C10: =$B10*('SUMMARY RESULTS'!$I$59+'SUMMARY RESULTS'!$I$63)*2000 -> 0 | D10: =$B10*('SUMMARY RESULTS'!$L$59+'SUMMARY RESULTS'!$L$63)*2000 -> 0 | E10: =$B10*('SUMMARY RESULTS'!$O$59+'SUMMARY RESULTS'!$O$63)*2000 -> 0 | F10: =$B10*('SUMMARY RESULTS'!$R$59+'SUMMARY RESULTS'!$R$63)*2000 -> 0 | G10: =$B10*('SUMMARY RESULTS'!$U$59+'SUMMARY RESULTS'!$U$63)*2000 -> 0 | I10: =C10*'Food Waste Calcs'!$F$55+C10 ->  | J10: =D10*'Food Waste Calcs'!$F$55+D10 ->  | K10: =E10*'Food Waste Calcs'!$F$55+E10 ->  | L10: =F10*'Food Waste Calcs'!$F$55+F10 ->  | M10: =G10*'Food Waste Calcs'!$F$55+G10 -> 
A11: Packaged Non-Perishable | B11: 0.06 | C11: =$B11*('SUMMARY RESULTS'!$I$59+'SUMMARY RESULTS'!$I$63)*2000 -> 0 | D11: =$B11*('SUMMARY RESULTS'!$L$59+'SUMMARY RESULTS'!$L$63)*2000 -> 0 | E11: =$B11*('SUMMARY RESULTS'!$O$59+'SUMMARY RESULTS'!$O$63)*2000 -> 0 | F11: =$B11*('SUMMARY RESULTS'!$R$59+'SUMMARY RESULTS'!$R$63)*2000 -> 0 | G11: =$B11*('SUMMARY RESULTS'!$U$59+'SUMMARY RESULTS'!$U$63)*2000 -> 0 | I11: =C11*'Food Waste Calcs'!$F$55+C11 ->  | J11: =D11*'Food Waste Calcs'!$F$55+D11 ->  | K11: =E11*'Food Waste Calcs'!$F$55+E11 ->  | L11: =F11*'Food Waste Calcs'!$F$55+F11 ->  | M11: =G11*'Food Waste Calcs'!$F$55+G11 -> 
B12: Total Supermarkets and Grocery Stores | C12: =SUM(C7:C11) -> 0 | D12: =SUM(D7:D11) -> 0 | E12: 0 | F12: 0 | G12: 0 | I12: =SUM(I7:I11) ->  | J12: =SUM(J7:J11) -> 
B13: *Assumes to include Supercenters and Warehouse Clubs
A14: Merchant Wholesalers*
A15: Vegetative | B15: 0.77 | C15: =$B15*'SUMMARY RESULTS'!$I$74*2000 -> 0 | D15: =$B15*'SUMMARY RESULTS'!$L$74*2000 -> 0 | E15: =$B15*'SUMMARY RESULTS'!$O$74*2000 -> 0 | F15: =$B15*'SUMMARY RESULTS'!$R$74*2000 -> 0 | G15: =$B15*'SUMMARY RESULTS'!$U$74*2000 -> 0 | I15: =C15*'Food Waste Calcs'!$F$55+C15 ->  | J15: =D15*'Food Waste Calcs'!$F$55+D15 ->  | K15: =E15*'Food Waste Calcs'!$F$55+E15 ->  | L15: =F15*'Food Waste Calcs'!$F$55+F15 ->  | M15: =G15*'Food Waste Calcs'!$F$55+G15 -> 
A16: Meat | B16: 0 | C16: =$B16*'SUMMARY RESULTS'!$I$74*2000 -> 0 | D16: =$B16*'SUMMARY RESULTS'!$L$74*2000 -> 0 | E16: =$B16*'SUMMARY RESULTS'!$O$74*2000 -> 0 | F16: =$B16*'SUMMARY RESULTS'!$R$74*2000 -> 0 | G16: =$B16*'SUMMARY RESULTS'!$U$74*2000 -> 0 | I16: =C16*'Food Waste Calcs'!$F$55+C16 ->  | J16: =D16*'Food Waste Calcs'!$F$55+D16 ->  | K16: =E16*'Food Waste Calcs'!$F$55+E16 ->  | L16: =F16*'Food Waste Calcs'!$F$55+F16 ->  | M16: =G16*'Food Waste Calcs'!$F$55+G16 -> 
A17: Eggs, Dairy, and Dairy Alternatives | B17: 0.06 | C17: =$B17*'SUMMARY RESULTS'!$I$74*2000 -> 0 | D17: =$B17*'SUMMARY RESULTS'!$L$74*2000 -> 0 | E17: =$B17*'SUMMARY RESULTS'!$O$74*2000 -> 0 | F17: =$B17*'SUMMARY RESULTS'!$R$74*2000 -> 0 | G17: =$B17*'SUMMARY RESULTS'!$U$74*2000 -> 0 | I17: =C17*'Food Waste Calcs'!$F$55+C17 ->  | J17: =D17*'Food Waste Calcs'!$F$55+D17 ->  | K17: =E17*'Food Waste Calcs'!$F$55+E17 ->  | L17: =F17*'Food Waste Calcs'!$F$55+F17 ->  | M17: =G17*'Food Waste Calcs'!$F$55+G17 -> 
A18: Cooked/Baked/Prepared Perishable Items | B18: 0.09 | C18: =$B18*'SUMMARY RESULTS'!$I$74*2000 -> 0 | D18: =$B18*'SUMMARY RESULTS'!$L$74*2000 -> 0 | E18: =$B18*'SUMMARY RESULTS'!$O$74*2000 -> 0 | F18: =$B18*'SUMMARY RESULTS'!$R$74*2000 -> 0 | G18: =$B18*'SUMMARY RESULTS'!$U$74*2000 -> 0 | I18: =C18*'Food Waste Calcs'!$F$55+C18 ->  | J18: =D18*'Food Waste Calcs'!$F$55+D18 ->  | K18: =E18*'Food Waste Calcs'!$F$55+E18 ->  | L18: =F18*'Food Waste Calcs'!$F$55+F18 ->  | M18: =G18*'Food Waste Calcs'!$F$55+G18 -> 
A19: Packaged Non-Perishable | B19: 0.09 | C19: =$B19*'SUMMARY RESULTS'!$I$74*2000 -> 0 | D19: =$B19*'SUMMARY RESULTS'!$L$74*2000 -> 0 | E19: =$B19*'SUMMARY RESULTS'!$O$74*2000 -> 0 | F19: =$B19*'SUMMARY RESULTS'!$R$74*2000 -> 0 | G19: =$B19*'SUMMARY RESULTS'!$U$74*2000 -> 0 | I19: =C19*'Food Waste Calcs'!$F$55+C19 ->  | J19: =D19*'Food Waste Calcs'!$F$55+D19 ->  | K19: =E19*'Food Waste Calcs'!$F$55+E19 ->  | L19: =F19*'Food Waste Calcs'!$F$55+F19 ->  | M19: =G19*'Food Waste Calcs'!$F$55+G19 -> 
B20: Total Wholesalers | C20: =SUM(C15:C19) -> 0 | D20: =SUM(D15:D19) -> 0 | E20: =SUM(E15:E19) -> 0 | F20: =SUM(F15:F19) -> 0 | G20: =SUM(G15:G19) -> 0 | I20: =SUM(I15:I19) ->  | J20: =SUM(J15:J19) -> 
B21: *Does not include Distributors
A22: Full-Service Restaurants
A23: Vegetative | B23: 0.45 | C23: =$B23*'SUMMARY RESULTS'!$I$98*2000 -> 0 | D23: =$B23*'SUMMARY RESULTS'!$L$98*2000 -> 0 | E23: =$B23*'SUMMARY RESULTS'!$O$98*2000 -> 0 | F23: =$B23*'SUMMARY RESULTS'!$R$98*2000 -> 0 | G23: =$B23*'SUMMARY RESULTS'!$U$98*2000 -> 0 | I23: =C23*'Food Waste Calcs'!$F$55+C23 ->  | J23: =D23*'Food Waste Calcs'!$F$55+D23 ->  | K23: =E23*'Food Waste Calcs'!$F$55+E23 ->  | L23: =F23*'Food Waste Calcs'!$F$55+F23 ->  | M23: =G23*'Food Waste Calcs'!$F$55+G23 -> 
A24: Meat | B24: 0.33 | C24: =$B24*'SUMMARY RESULTS'!$I$98*2000 -> 0 | D24: =$B24*'SUMMARY RESULTS'!$L$98*2000 -> 0 | E24: =$B24*'SUMMARY RESULTS'!$O$98*2000 -> 0 | F24: =$B24*'SUMMARY RESULTS'!$R$98*2000 -> 0 | G24: =$B24*'SUMMARY RESULTS'!$U$98*2000 -> 0 | I24: =C24*'Food Waste Calcs'!$F$55+C24 ->  | J24: =D24*'Food Waste Calcs'!$F$55+D24 ->  | K24: =E24*'Food Waste Calcs'!$F$55+E24 ->  | L24: =F24*'Food Waste Calcs'!$F$55+F24 ->  | M24: =G24*'Food Waste Calcs'!$F$55+G24 -> 
A25: Eggs, Dairy, and Dairy Alternatives | B25: 0 | C25: =$B25*'SUMMARY RESULTS'!$I$98*2000 -> 0 | D25: =$B25*'SUMMARY RESULTS'!$L$98*2000 -> 0 | E25: =$B25*'SUMMARY RESULTS'!$O$98*2000 -> 0 | F25: =$B25*'SUMMARY RESULTS'!$R$98*2000 -> 0 | G25: =$B25*'SUMMARY RESULTS'!$U$98*2000 -> 0 | I25: =C25*'Food Waste Calcs'!$F$55+C25 ->  | J25: =D25*'Food Waste Calcs'!$F$55+D25 ->  | K25: =E25*'Food Waste Calcs'!$F$55+E25 ->  | L25: =F25*'Food Waste Calcs'!$F$55+F25 ->  | M25: =G25*'Food Waste Calcs'!$F$55+G25 -> 
A26: Cooked/Baked/Prepared Perishable Items | B26: 0.14 | C26: =$B26*'SUMMARY RESULTS'!$I$98*2000 -> 0 | D26: =$B26*'SUMMARY RESULTS'!$L$98*2000 -> 0 | E26: =$B26*'SUMMARY RESULTS'!$O$98*2000 -> 0 | F26: =$B26*'SUMMARY RESULTS'!$R$98*2000 -> 0 | G26: =$B26*'SUMMARY RESULTS'!$U$98*2000 -> 0 | I26: =C26*'Food Waste Calcs'!$F$55+C26 ->  | J26: =D26*'Food Waste Calcs'!$F$55+D26 ->  | K26: =E26*'Food Waste Calcs'!$F$55+E26 ->  | L26: =F26*'Food Waste Calcs'!$F$55+F26 ->  | M26: =G26*'Food Waste Calcs'!$F$55+G26 -> 
A27: Packaged Non-Perishable | B27: 0.08 | C27: =$B27*'SUMMARY RESULTS'!$I$98*2000 -> 0 | D27: =$B27*'SUMMARY RESULTS'!$L$98*2000 -> 0 | E27: =$B27*'SUMMARY RESULTS'!$O$98*2000 -> 0 | F27: =$B27*'SUMMARY RESULTS'!$R$98*2000 -> 0 | G27: =$B27*'SUMMARY RESULTS'!$U$98*2000 -> 0 | I27: =C27*'Food Waste Calcs'!$F$55+C27 ->  | J27: =D27*'Food Waste Calcs'!$F$55+D27 ->  | K27: =E27*'Food Waste Calcs'!$F$55+E27 ->  | L27: =F27*'Food Waste Calcs'!$F$55+F27 ->  | M27: =G27*'Food Waste Calcs'!$F$55+G27 -> 
B28: Total Full Service Restaurants | C28: =SUM(C23:C27) -> 0 | D28: =SUM(D23:D27) -> 0 | E28: =SUM(E23:E27) -> 0 | F28: =SUM(F23:F27) -> 0 | G28: =SUM(G23:G27) -> 0 | I28: =SUM(I23:I27) ->  | J28: =SUM(J23:J27) -> 
A29: Overall Commercial Sector
A30: Vegetative, 54% | B30: 0.54 | C30: =$B30*'SUMMARY RESULTS'!$I$113*2000 -> 0 | D30: =$B30*'SUMMARY RESULTS'!$L$113*2000 -> 0 | E30: =$B30*'SUMMARY RESULTS'!$O$113*2000 -> 178200 | F30: =$B30*'SUMMARY RESULTS'!$R$113*2000 -> 0 | G30: =$B30*'SUMMARY RESULTS'!$U$113*2000 -> 178200 | I30: =C30*'Food Waste Calcs'!$F$55+C30 ->  | J30: =D30*'Food Waste Calcs'!$F$55+D30 ->  | K30: =E30*'Food Waste Calcs'!$F$55+E30 ->  | L30: =F30*'Food Waste Calcs'!$F$55+F30 ->  | M30: =G30*'Food Waste Calcs'!$F$55+G30 -> 
A31: Meat, 8% | B31: 0.08 | C31: =$B31*'SUMMARY RESULTS'!$I$113*2000 -> 0 | D31: =$B31*'SUMMARY RESULTS'!$L$113*2000 -> 0 | E31: =$B31*'SUMMARY RESULTS'!$O$113*2000 -> 26400 | F31: =$B31*'SUMMARY RESULTS'!$R$113*2000 -> 0 | G31: =$B31*'SUMMARY RESULTS'!$U$113*2000 -> 26400 | I31: =C31*'Food Waste Calcs'!$F$55+C31 ->  | J31: =D31*'Food Waste Calcs'!$F$55+D31 ->  | K31: =E31*'Food Waste Calcs'!$F$55+E31 ->  | L31: =F31*'Food Waste Calcs'!$F$55+F31 ->  | M31: =G31*'Food Waste Calcs'!$F$55+G31 -> 
A32: Eggs, Dairy, and Dairy Alternatives, 6% | B32: 0.06 | C32: =$B32*'SUMMARY RESULTS'!$I$113*2000 -> 0 | D32: =$B32*'SUMMARY RESULTS'!$L$113*2000 -> 0 | E32: =$B32*'SUMMARY RESULTS'!$O$113*2000 -> 19800 | F32: =$B32*'SUMMARY RESULTS'!$R$113*2000 -> 0 | G32: =$B32*'SUMMARY RESULTS'!$U$113*2000 -> 19800 | I32: =C32*'Food Waste Calcs'!$F$55+C32 ->  | J32: =D32*'Food Waste Calcs'!$F$55+D32 ->  | K32: =E32*'Food Waste Calcs'!$F$55+E32 ->  | L32: =F32*'Food Waste Calcs'!$F$55+F32 ->  | M32: =G32*'Food Waste Calcs'!$F$55+G32 -> 
A33: Cooked/Baked/Prepared Perishable Items, 11% | B33: 0.11 | C33: =$B33*'SUMMARY RESULTS'!$I$113*2000 -> 0 | D33: =$B33*'SUMMARY RESULTS'!$L$113*2000 -> 0 | E33: =$B33*'SUMMARY RESULTS'!$O$113*2000 -> 36300 | F33: =$B33*'SUMMARY RESULTS'!$R$113*2000 -> 0 | G33: =$B33*'SUMMARY RESULTS'!$U$113*2000 -> 36300 | I33: =C33*'Food Waste Calcs'!$F$55+C33 ->  | J33: =D33*'Food Waste Calcs'!$F$55+D33 ->  | K33: =E33*'Food Waste Calcs'!$F$55+E33 ->  | L33: =F33*'Food Waste Calcs'!$F$55+F33 ->  | M33: =G33*'Food Waste Calcs'!$F$55+G33 -> 
A34: Packaged Non-Perishable, 21% | B34: 0.21 | C34: =$B34*'SUMMARY RESULTS'!$I$113*2000 -> 0 | D34: =$B34*'SUMMARY RESULTS'!$L$113*2000 -> 0 | E34: =$B34*'SUMMARY RESULTS'!$O$113*2000 -> 69300 | F34: =$B34*'SUMMARY RESULTS'!$R$113*2000 -> 0 | G34: =$B34*'SUMMARY RESULTS'!$U$113*2000 -> 69300 | I34: =C34*'Food Waste Calcs'!$F$55+C34 ->  | J34: =D34*'Food Waste Calcs'!$F$55+D34 ->  | K34: =E34*'Food Waste Calcs'!$F$55+E34 ->  | L34: =F34*'Food Waste Calcs'!$F$55+F34 ->  | M34: =G34*'Food Waste Calcs'!$F$55+G34 -> 
B35: Overall Commercial Total | C35: =SUM(C30:C34) -> 0 | D35: =SUM(D30:D34) -> 0 | E35: =SUM(E30:E34) -> 330000 | F35: =SUM(F30:F34) -> 0 | G35: =SUM(G30:G34) -> 330000 | I35: =SUM(I30:I34) ->  | J35: =SUM(J30:J34) -> 
A37: Source:
A38: Table 5: Breakdown of Total Potentially Donated Food Waste Disposed by Food Type for from 2018 Generator-Based Waste Characterization Sub-Study for Some Commercial Edible Food Generator Types
A39: Estimating Factors for Edible Food Disposed by Commercial Edible Food Generators | D39: Last updated: June 9, 2021 | E39: CalRecycle
A41: "Maximum Pounds of Rescue Potential..." in Columns E and K are the planning results for purposes of reporting capacity planning.
A42: "Moderate Pounds of Rescue Potential…" in Columns D and J represent lower participation and less than maximum amounts of edible food being recovered.
A44: Generation-Based results are hidden in columsn F-G, and L-M.
A45: Note that the percent breakdowns are for landfill disposal, not food waste generation. The actual percent breakdown at the generation level may vary.

Sheet Food Waste Calcs
A2: Food Disposal Estimates by Business Group
A3: *adapted from NRDC's "City Wasted Food and Rescue Potential Calculator," CalRecycle's 2014 Generator Study and some data from CalRecycle's 2021 Guidance Document
A4: Business Group | B4: ENTER DATA HERE | D4: Conversion factor to tons of food waste DISPOSAL (Note 1) | F4: Tons food waste disposed per year | G4: Conversion factor to tons of food waste GENERATION | I4: Tons food waste generated per year
A5: Tier 1 Commercial Edible Food Generators (Note 2)
A6: Grocery Stores and Supermarkets | C6: employees | D6: 0.4 | F6: =B6*D6 -> 0 | G6: 1.54432 | I6: =B6*G6 -> 0 | K6: Total Employee Conversion | M6: 2014 CalRecycle aligns w/ 2021 | N6: Assumes existing diversion
A7: Conventional Stores. Do Not Double Count w/ Others Below!
A8: Warehouse Clubs and Supercenters | C8: employees | D8: =D6*0.667 -> 0.2668 | F8: =B8*D8 -> 0 | G8: =G6*0.667 -> 1.03006144 | I8: =B8*G8 -> 0 | K8: Total Employee Conversion | M8: Applied 2/3 Grocery Stores and Supermarkets since warehouse & big box stores are larger and have more employees not necessarily related to food. Lack of data to be able to quantify specifically for a Big Box store or Warehouse Club. | W8: Assumes existing diversion
A9: Big Box and Warehouse Stores w/ Grocery Sections
A10: Food Service Providers- (3rd Party Sites, Corporate Cafeterias, Banquets, etc.) | C10: employees (food service employees) | D10: =3000/2000 -> 1.5 | E10: tons/kitchen employee/year | F10: =B10*'Food Waste Calcs'!D10 -> 0 | G10: =3000/2000 -> 1.5 | H10: tons/kitchen employee/year | I10: =B10*'Food Waste Calcs'!G10 -> 0 | K10: Applied catering.
A11: Enter Food Service Employees or Facility Employees (not both) | C11: total employees at facility | D11: 40 | E11: pounds/employee/year | F11: =D11/2000*B11 -> 0 | G11: 40 | H11: pounds/employee/year | I11: =G11*B11/2000 -> 0 | K11: Adapted from NRDC findings
A13: Food Distributors | C13: employees | D13: =47000/18/0.73/2000 -> 1.788432268 | F13: =B13*D13 -> 0 | G13: =D13*0.816/0.474 -> 3.078820107 | I13: =B13*G13 -> 0 | K13: Total Employee Conversion | M13: 2021 CalRecycle | N13: Assumes some existing diversion, applied 2014 CalRecycle generation ratio to diversion
A15: Wholesale Food Vendors | C15: employees | D15: =47000/18/0.73/2000 -> 1.788432268 | F15: =B15*D15 -> 0 | G15: =D15*0.816/0.474 -> 3.078820107 | I15: =B15*G15 -> 0 | K15: Total Employee Conversion | M15: 2021 CalRecycle | N15: Assumes some existing diversion, applied 2014 CalRecycle generation ratio to diversion
A18: Tier 2 Commercial Edible Food Generators (Note 2)
A19: Colleges and Universities | C19: FTE employees | D19: 0.15313 | E19: tons/employee/year | F19: =D19*B19 -> 0 | G19: =D19 -> 0.15313 | H19: tons/employee/year | I19: =G19*B19 -> 0 | K19: Applied FTE Conversion | N19: Assumes little to no existing diversion
A20: If more specific information about food service is known, user may elect to select the other appropriate sector such as Food Service Provider, or Restaurants.
A21: Enter FTE or Students (not both) | C21: students | D21: 1.13832 | E21: tons/100 students/year | F21: =D21*B21/100 -> 0 | G21: =D21 -> 1.13832 | H21: tons/100 students/year | I21: =G21*B21/100 -> 0
A24: K-12 Schools (Local Education Agencies) | C24: FTE employees | D24: 0.15313 | E24: tons/employee/year | F24: =D24*B24 -> 0 | G24: =D24 -> 0.15313 | H24: tons/employee/year | I24: =G24*B24 -> 0 | K24: Applied FTE Conversion | N24: Assumes little to no existing diversion
A25: Enter FTE or Students (not both) | C25: students | D25: 1.13832 | E25: tons/100 students/year | F25: =D25*B25/100 -> 0 | G25: =D25 -> 1.13832 | H25: tons/100 students/year | I25: =G25*B25/100 -> 0
A27: Hotels | C27: employees | D27: =0.46468*0.83 -> 0.3856844 | E27: tons/employee/year | F27: =B27*D27 -> 0 | G27: =0.49104*0.991 -> 0.48662064 | H27: tons/employee/year | I27: =B27*G27 -> 0 | K27: Total Employee Conversion | M27: Hybrid 2014 CalRecycle/ Cascadia | N27: Assumes some existing diversion
A28: Enter Employees or Rooms (not both) | C28: rooms | D28: =D27/1.47 -> 0.2623703401 | E28: tons/guest room/year | F28: =B28*D28 -> 0 | G28: =G27/1.34 -> 0.3631497313 | H28: tons/guest room/year | I28: =B28*G28 -> 0 | K28: Hybrid 2014 CalRecycle/ Cascadia
E29: tons/employee/year
A30: Health Care | C30: employees | D30: 0.1236 | E30: tons/employee/year | F30: =B30*D30 -> 0 | G30: 0.12852 | H30: tons/employee/year | I30: =B30*G30 -> 0 | K30: Total Employee Conversion | N30: Assumes little to no existing diversion
A31: Enter Employees or Beds (not both) | C31: beds | D31: 0.11963 | E31: tons/bed/year | F31: =D31*B31 -> 0 | G31: =D31 -> 0.11963 | H31: tons/bed/year | I31: =B31*G31 -> 0
A33: Other Retail w/ Grocery | C33: employees | D33: 0.31384 | F33: =B33*D33 -> 0 | G33: 0.31556 | I33: =B33*G33 -> 0 | K33: Total Employee Conversion | N33: Assume existing diversion not significant
A34: Other retail variety stores that sell food
A36: Restaurants
A37: Full Service Restaurants | C37: employees | D37: =0.895*1.14 -> 1.0203 | E37: tons/employee/year | F37: =D37*B37 -> 0 | G37: =0.906*1.15 -> 1.0419 | H37: tons/employee/year | I37: =G37*B37 -> 0 | K37: Total Employee Conversion | M37: Hybrid 2014 CalRecycle/ Cascadia | Q37: Assumes little to no existing diversion
A38: Limited Service Restaurants | C38: employees | D38: =0.895*0.859 -> 0.768805 | E38: tons/employee/year | F38: =D38*B38 -> 0 | G38: =0.906*0.848 -> 0.768288 | H38: tons/employee/year | I38: =G38*B38 -> 0 | K38: Total Employee Conversion | M38: Hybrid 2014 CalRecycle/ Cascadia | Q38: Assumes little to no existing diversion
A39: Food Service Sector Subtotal | B39: =SUM(B37:B38) -> 0 | C39: employees | F39: =SUM(F37:F38) -> 0 | I39: =SUM(I37:I38) -> 0
A41: Event and Recreation Facilities | C41: employees | D41: 0.654 | E41: tons/employee/year | F41: =D41*B41 -> 0 | G41: 0.7015 | H41: tons/employee/year | I41: =G41*B41 -> 0 | K41: Total Employee Conversion for venues | N41: Assumes some existing diversion
A42: Enter employees and annual visitors. Only apply one of the metrics per venue or event. | C42: Visitors | D42: 0.14502 | E42: tons/1000 visitors/year | F42: =B42*D42/1000 -> 0 | G42: 0.16165 | H42: tons/1000 visitors/year | I42: =B42*G42/1000 -> 0 | K42: Assumes visitors at events or venues
A44: Correctional Facilities (Tier 1 or Tier 2, User to Confirm) | C44: Inmates | D44: =1*365/2000 -> 0.1825 | E44: tons/inmate/year | F44: =B44*D44 -> 0 | G44: =D44 -> 0.1825 | H44: tons/inmate/year | I44: =B44*G44 -> 0 | K44: Not a CalRecycle business group, using local data from audit of East Mesa. Similar results as NRDC findings.
A46: Other Food Facilities not included above (Tier 1 or Tier 2)
A47: East Mesa Central Production Center | C47: enter tons/year
A48: East Mesa Detention Facilities | C48: enter tons/year
A49: Enter Facility Name and Tier 1 or Tier 2 | C49: enter tons/year
A50: Enter Facility Name and Tier 1 or Tier 2 | C50: enter tons/year
A51: Other Food Facilities subtotal | B51: =SUM(B47:B50) -> 0 | C51: subtotal tons/ year | F51: =B51 -> 0 | I51: =B51 -> 0
E52: subtotals | F52: =SUM(F6:F51)-F39 -> 0 | I52: =SUM(I6:I51)-I39 -> 0
A53: NEW* Population Projections
A54: Enter Beginning Reporting Year Population (January 1, 2022) | C54: Current Population
A55: Enter Projected Population in Target Year (December 31, 2024) | C55: Target Population | E55: Percent Change in Population | F55: =(B55-B54)/B54 ->  | G55: Apply populations from 1/1/18-1/1/21, DOF Data, to represent forecasted projection
A58: (1) Generator disposal metrics applied to reflect little to no curbside diversion (exception is Grocery, Supermarkets, Warehouse Clubs and Supercenters that do backhaul). Any curbside diversion results for food waste were added back to disposal.
A59: (2) Generators are generally organized by Tier 1 and Tier 2 sector designations, though some generators do not neatly fit into a Tier 1 and Tier 2 sector. User may need to extract or reorganize results to gain an accurate picture of Tier 1 and Tier 2. For example, "Retail Variety Store" is not a Tier 1 or Tier 2 generator in itself, nor are "Colleges and Universities." The specific food sectors of Non-Local Entities would need to be used as well.

Sheet Rescue Potential Calcs
A1: Edible Food Recovery Estimates by Business Group
A2: Sectors and Inputs | C2: Disposal Based | J2: Generation Based | N2: User can enter their own scenarios here. Results not shown on Summary tab
B3: Needed Input Data | C3: User | J3: User | N3: User | O3: User | P3: User
C4: Input | D4: Moderate | E4: Moderate | F4: Moderate | G4: Maximum | H4: Maximum | I4: Maximum | J4: Input | K4: Maximum | L4: Maximum | M4: Maximum | N4: Scenario | O4: Scenario | P4: Scenario
A5: Sector: | C5: Figure | D5: Donation Metric | E5: Participation Rate | F5: Tons | G5: Donation Metric | H5: Participation Rate | I5: Tons | J5: Figure | K5: Donation Metric | L5: Participation Rate | M5: Tons | N5: Donation Metric | O5: Participation Rate | P5: Tons
A6: Tier 1 Commercial Edible Food Generators
A7: Grocery Stores and Supermarkets (D) | B7: tons food disposed | C7: ='Food Waste Calcs'!F6 -> 0 | D7: 0.3 | E7: 0.8 | F7: =$C7*D7*E7 -> 0 | G7: 0.3 | H7: 1 | I7: =$C7*G7*H7 -> 0 | J7: ='Food Waste Calcs'!I6 -> 0 | K7: 0.3 | L7: 1 | M7: =$J7*K7*L7 -> 0 | N7: 0.6 | O7: 0.9 | P7: =C7*N7*O7 -> 0
A8: Warehouse Clubs and Supercenters (D) (Likely SB1383 Supermarkets) | B8: tons food disposed | C8: ='Food Waste Calcs'!F8 -> 0 | D8: 0.3 | E8: 0.8 | F8: =$C8*D8*E8 -> 0 | G8: 0.3 | H8: 1 | I8: =$C8*G8*H8 -> 0 | J8: ='Food Waste Calcs'!I8 -> 0 | K8: 0.3 | L8: 1 | M8: 0 | N8: 0.6 | O8: 0.9 | P8: 0
A9: Food Service Providers (G) | B9: tons food disposed | C9: =SUM('Food Waste Calcs'!F10:F11) -> 0 | D9: 0.05 | E9: 0.5 | F9: =C9*D9*E9 -> 0 | G9: 0.1 | H9: 1 | I9: =C9*G9*H9 -> 0 | J9: =SUM('Food Waste Calcs'!I10:I11) -> 0 | K9: 0.1 | L9: 1 | M9: =J9*K9*L9 -> 0 | N9: 0.04 | O9: 0.25 | P9: =C9*N9*O9 -> 0
A10: Wholesale Food Vendors (J) | B10: tons food disposed | C10: ='Food Waste Calcs'!F15 -> 0 | D10: 0.73 | E10: 0.5 | F10: =C10*D10*E10 -> 0 | G10: 0.73 | H10: 1 | I10: =C10*G10*H10 -> 0 | J10: ='Food Waste Calcs'!I15 -> 0 | K10: 0.73 | L10: 1 | M10: =J10*K10*L10 -> 0 | N10: 0.75 | O10: 0.25 | P10: =C10*N10*O10 -> 0
A11: Food Distributors (K) | B11: tons food disposed | C11: ='Food Waste Calcs'!F13 -> 0 | D11: 0.73 | E11: 0.5 | F11: =C11*D11*E11 -> 0 | G11: 0.73 | H11: 1 | I11: =C11*G11*H11 -> 0 | J11: ='Food Waste Calcs'!I13 -> 0 | K11: 0.73 | L11: 1 | M11: =J11*K11*L11 -> 0 | N11: 0.75 | O11: 0.25 | P11: =C11*N11*O11 -> 0
A12: Tier 2 Commercial Edible Food Generators
A13: University and Colleges (A) | B13: tons food disposed | C13: =SUM('Food Waste Calcs'!F19:F21) -> 0 | D13: 0.01 | E13: 0.5 | F13: =$C13*D13*E13 -> 0 | G13: 0.03 | H13: 1 | I13: =$C13*G13*H13 -> 0 | J13: =SUM('Food Waste Calcs'!I19:I21) -> 0 | K13: 0.03 | L13: 1 | M13: =$J13*K13*L13 -> 0 | N13: 0.15 | O13: 0.7 | P13: =C13*N13*O13 -> 0
A14: K-12 (B) | B14: Enter # of students | D14: 1 | E14: 0.5 | F14: =$C14*D14*E14/2000 -> 0 | G14: 4 | H14: 1 | I14: =$C14*G14*H14/2000 -> 0 | J14: =C14 -> 0 | K14: 6 | L14: 1 | M14: =$J14*K14*L14/2000 -> 0 | N14: 5 | O14: 1 | P14: =C14*N14*O14/2000 -> 0
A15: Hospitality (C) | B15: tons food disposed | C15: =SUM('Food Waste Calcs'!F27:F28) -> 0 | D15: 0.05 | E15: 0.5 | F15: =$C15*D15*E15 -> 0 | G15: 0.1 | H15: 1 | I15: =$C15*G15*H15 -> 0 | J15: =SUM('Food Waste Calcs'!I27:I28) -> 0 | K15: 0.1 | L15: 1 | M15: =$J15*K15*L15 -> 0 | N15: 0.06 | O15: 0.25 | P15: =C15*N15*O15 -> 0
A16: Healthcare (C) | B16: tons food disposed | C16: =SUM('Food Waste Calcs'!F30:F31) -> 0 | D16: 0.05 | E16: 0.5 | F16: =$C16*D16*E16 -> 0 | G16: 0.1 | H16: 1 | I16: =$C16*G16*H16 -> 0 | J16: =SUM('Food Waste Calcs'!I30:I31) -> 0 | K16: 0.1 | L16: 1 | M16: =$J16*K16*L16 -> 0 | N16: 0.06 | O16: 0.8 | P16: =C16*N16*O16 -> 0
A17: Other Retail Stores w/ Grocery (E) | B17: tons food disposed | C17: ='Food Waste Calcs'!F33 -> 0 | D17: 0.3 | E17: 0.5 | F17: =$C17*D17*E17 -> 0 | G17: 0.5 | H17: 1 | I17: =$C17*G17*H17 -> 0 | J17: ='Food Waste Calcs'!I33 -> 0 | K17: 0.5 | L17: 1 | M17: =$J17*K17*L17 -> 0 | N17: 0.9 | O17: 0.6 | P17: =C17*N17*O17 -> 0
A18: FS Restaurants (F) | B18: tons food disposed | C18: ='Food Waste Calcs'!F37 -> 0 | D18: 0.03 | E18: 0.5 | F18: =$C18*D18*E18 -> 0 | G18: 0.06 | H18: 1 | I18: 0 | J18: ='Food Waste Calcs'!I37 -> 0 | K18: 0.06 | L18: 1 | M18: 0 | N18: 0.1 | O18: 0.6 | P18: 0
A19: LS Restaurants (F) | B19: tons food disposed | C19: ='Food Waste Calcs'!F38 -> 0 | D19: 0.01 | E19: 0.5 | F19: =$C19*D19*E19 -> 0 | G19: 0.03 | H19: 1 | I19: 0 | J19: ='Food Waste Calcs'!I38 -> 0 | K19: 0.03 | L19: 1 | M19: 0 | N19: 0.1 | O19: 0.6 | P19: 0
A20: Events and Recreational Facilities (H) | B20: tons food disposed | C20: =SUM('Food Waste Calcs'!F41:F42) -> 0 | D20: 0.03 | E20: 0.25 | F20: =C20*D20*E20 -> 0 | G20: 0.1 | H20: 1 | I20: =C20*G20*H20 -> 0 | J20: =SUM('Food Waste Calcs'!I41:I42) -> 0 | K20: 0.1 | L20: 1 | M20: =J20*K20*L20 -> 0 | N20: 0.04 | O20: 0.25 | P20: 0
A21: Correction Facilities (I). Could be Tier 1 or 2. Confirm. | B21: Number Inmates | C21: ='Food Waste Calcs'!B44 -> 0 | D21: 0.135 | E21: 0.5 | F21: =C21*1*365*D21*E21/2000 -> 0 | G21: 0.25 | H21: 1 | I21: =C21*1*365*G21*H21/2000 -> 0 | J21: =C21 -> 0 | K21: 0.25 | L21: 1 | M21: =J21*1*365*K21*L21/2000 -> 0 | N21: 0.04 | O21: 0.25 | P21: 0
A23: *adapted from NRDC's "City Wasted Food and Rescue Potential Calculator"
A24: The range of metrics are primarily based on narrative descriptions of food recovery potential from within the body of NRDC's report "MODELING THE POTENTIAL TO INCREASE FOOD RESCUE: DENVER, NEW YORK CITY AND NASHVILLE"
A25: (A) For university and colleges: Per report descriptives, applied 1% to 3% of food waste may be edible/recoverable. Depends on type of food service provided and whether students live on or off campus. Assumed to include community colleges
A26: (B) K-12 schools: Per report, up to 16% potentially recoverable. Unclear how share tables impact recovery potential. Range is 1 to 4 pounds per student per school year
A27: (C) Hospitality and Healthcare: Per report, 5% to 10% of total food waste may be edible/recoverable
A28: (D) For Grocery, report indicated more than 1/3 of disposed food waste is potentially edible/recoverable. Applied the same for Warehouse Clubs and Supercenters
A29: (E) Other Retail w/ Food- Assume edible food recovery potential is high based on products typically carried (packaged and baked goods, some fresh produce).
A30: (F) Restaurants: Per report, 1% to 3% of food waste may be edible/recoverable. CalRecycle found up to 6% recoverable at Full Service Restaurants.
A31: (G) Food Service Providers: Applied 5% to 10% similar to hospitality and healthcare
A32: (H) Events, Venues and Recreation: Assumed 3% to 10% of food waste is edible/recoverable.
A33: (I) Per local audit results, where ~ 25% of daily food waste resulted from over-production. Many of the meals were pre-portioned and packaged.
A34: (J) Wholesale Food Vendors: Per CalRecycle Guidance document 73% of total merchant wholesaler food waste was potentially donatable
A35: (K) Food Distributors: Applied same metrics as Wholesale Food Vendors. Lack of consistent data.
A36: "Participation rate" indicates the percentage of all entities within a given sector that are assumed to donate for a given scenario
A37: The maximum scenario is set to 100% participation due to SB 1383 mandating large generators to recover edible food.

Sheet Sheet2 (hidden)
A2: Name | B2: Non resident | C2: Resident | D2: Total | E2: Location | F2: Founded | G2: Enrollment | H2: References | M2: BON SECOURS HOSPITAL
A3: Coppin State University | D3: 3108 | E3: Baltimore | F3: 1900 | G3: 4357 | H3: [1] | I3: Public 4 year | M3: (member, Bon Secours Baltimore Health System)
A4: Morgan State University | D4: 7725 | E4: Baltimore | F4: 1867 | G4: 6616 | H4: [2][3][4] | I4: Public 4 year | M4: 2000 West Baltimore St., Baltimore, MD 21223 - 1597
A5: University of Baltimore | B5: 6229 | E5: Baltimore | F5: 1925 | G5: 5009 | H5: [6] | I5: Public 4 year | M5: (410) 362-3000
A6: University of Maryland, Baltimore | D6: 6329 | E6: Baltimore | F6: 1807 | G6: 5874 | H6: [7] | I6: Public 4 year | M6: web: http://bonsecoursbaltimore.com/
A7: Johns Hopkins University | D7: 22686 | E7: Baltimore | F7: 1876 | G7: 18753 | H7: [10] | I7: Private | M7: GOOD SAMARITAN HOSPITAL OF MARYLAND
A8: Loyola University Maryland | D8: 6050 | E8: Baltimore | F8: 1852 | G8: 6028 | H8: [11] | I8: Private | M8: (member, MedStar Health)
A9: Maryland Institute College of Art | D9: 2197 | E9: Baltimore | F9: 1826 | G9: 1899 | H9: [12] | I9: Private | M9: 5601 Loch Raven Blvd., Baltimore, MD 21239 - 2995
A10: Notre Dame of Maryland University | D10: 2612 | E10: Baltimore | F10: 1873 | G10: 4878 | H10: [13] | I10: Private | M10: (443) 444-8000; 1-855-633-5655 (toll free)
A11: Sojourner-Douglass College | D11: ? | E11: Baltimore | F11: 1972 | G11: 1324 | H11: [14] | I11: Private | M11: web: www.medstargoodsam.org/#q={}
A13: All-State Career | B13: 599
A14: Brightwood College | B14: 566 | M14: HARBOR HOSPITAL
A15: Hair Design | B15: 55 | M15: (member, MedStar Health)
A16: Baltimore City Community College | B16: 4060 | M16: 3001 South Hanover St., Baltimore, MD 21225 - 1290
A17: Holistic Massage | B17: 28 | M17: (410) 350-3200; 1-855-633-0363 (toll free)
A18: Faith Theological | B18: 150 | M18: web: www.medstarharbor.org/#q={}
M20: JOHNS HOPKINS BAYVIEW MEDICAL CENTER
M21: (member, Johns Hopkins Health System)
M22: 4940 Eastern Ave., Baltimore, MD 21224 - 2780
M23: (410) 550-0100
M24: web: www.hopkinsmedicine.org/johns_hopkins_bayview/
M26: THE JOHNS HOPKINS HOSPITAL
M27: (member, Johns Hopkins Health System)
M28: 1800 Orleans St., Baltimore, MD 21287 - 0010
M29: (410) 955-5000
M30: web: www.hopkinsmedicine.org/the_johns_hopkins_hospital/index.html
M32: KENNEDY KRIEGER INSTITUTE
M33: 707 North Broadway, Baltimore, MD 21205 - 1890
M34: (443) 923-9200; 1-800-873-3377 (toll free)
M35: (443) 923-9400 (local referral); 1-888-554-2080 (toll-free referral)
M36: e-mail: info@kennedykrieger.org
M37: web: www.kennedykrieger.org/
M39: LEVINDALE HEBREW GERIATRIC CENTER & HOSPITAL
M40: (member, LifeBridge Health)
M41: 2434 West Belvedere Ave., Baltimore, MD 21215 - 5299
M42: (410) 601-2400
M43: web: www.lifebridgehealth.org/Levindale/Levindale2.aspx
M45: MERCY MEDICAL CENTER
M46: 345 St. Paul Place, Baltimore, Md 21202 - 2165
M47: (410) 332-9000
M48: web: https://mdmercy.com/
M50: MT. WASHINGTON PEDIATRIC HOSPITAL
M51: (affiliate, University of Maryland Medical System & Johns Hopkins Medicine)
M52: 1708 West Rogers Ave., Baltimore, MD 21209 - 4596
M53: (410) 578-8600
M54: web: www.mwph.org/
M56: ST. AGNES HOSPITAL
M57: (member, Ascension Health)
M58: 900 Caton Ave., Baltimore, MD 21229 - 5299
M59: (667) 234-6000
M60: web: www.stagnes.org/
M62: SINAI HOSPITAL OF BALTIMORE
M63: (member, LifeBridge Health)
M64: 2401 West Belvedere Ave., Baltimore, MD 21215 - 5271
M65: (410) 601-9000
M66: web: www.lifebridgehealth.org/Sinai/Sinai1.aspx
M68: UNION MEMORIAL HOSPITAL
M69: (member, MedStar Health)
M70: 201 East University Parkway, Baltimore, MD 21218 - 2895
M71: (410) 554-2000; 1-855-633-0199 (toll free)
M72: web: www.medstarunionmemorial.org/#q={}
M74: UNIVERSITY OF MARYLAND MEDICAL CENTER
M75: (formerly Maryland General Hospital)
M76: (member, University of Maryland Medical System)
M77: 22 South Greene St., Baltimore, MD 21201 - 1595
M78: (410) 328-8667; 1-800-492-5538 (toll free)
M79: web: http://umm.edu/
M82: UNIVERSITY OF MARYLAND MEDICAL CENTER
M83: MIDTOWN CAMPUS
M84: (member, University of Maryland Medical System)
M85: 827 Linden Ave., Baltimore, MD 21201 - 4681
M86: (410) 225-8000
M87: web: http://ummidtown.org/
M89: UNIVERSITY OF MARYLAND
M90: REHABILITATION & ORTHOPAEDIC INSTITUTE
M91: (formerly James Lawrence Kernan Hospital)
M92: (member, University of Maryland Medical System)
M93: 2200 Kernan Drive, Baltimore, MD 21207 - 5597
M94: (410) 448-2500; 1-888-453-7626 (toll free)
M95: web: http://umrehabortho.org/
M98: VA MARYLAND HEALTH CARE SYSTEM
M99: 10 North Greene St., Baltimore, MD 21201 - 1524
M100: (410) 605-7000; 1-800-463-6295 (toll free); fax: (410) 605-7901
M101: web: www.maryland.va.gov/locations/Baltimore_VA_Medical_Center.asp

Sheet Lookup (hidden)
A2: Sector | C2: School | E2: Hospitality | F2: Sector | G2: School | H2: Healthcare | I2: Correctional
A3: School | C3: College/University nonresident | E3: Hospital | F3: School | G3: College and University | H3: Hospital | I3: Correctional
A4: Correctional | C4: College/University resident | E4: Skilled Nursing | F4: Correctional | G4: Elementary | H4: Nursing home
A5: Event and Recreational | C5: Elementary | F5: Event and Recreational | G5: Middle
A6: Food Manufacturing and Processing | C6: Middle | F6: Food Manufacturing and Processing | G6: High
A7: Food Service | C7: High | F7: Food Service | G7: Elementary/Middle
A8: Food Wholesale and Distribution | C8: Elementary/Middle | F8: Food Wholesale and Distribution | G8: Middle/High
A9: Grocers | C9: Middle/High | F9: Grocers | G9: K-12
A10: Healthcare | C10: All K-12 | F10: Healthcare
A11: Hospitality | F11: Hospitality
